[Event "Kvika Banki League Iceland 2022-23"]
[Site "Reykjavik"]
[Date "2022.10.15"]
[Round "4.9"]
[White "Cheparinov, Ivan"]
[Black "Heimisson, Hilmir Freyr"]
[Result "1-0"]
[ECO "B67"]
[WhiteElo "2689"]
[BlackElo "2293"]
[Annotator "TA"]
[PlyCount "91"]
[EventDate "2022.10.13"]
[EventType "team-tourn"]
[EventCountry "ISL"]
[SourceTitle "playchess.com"]
[Source "ChessBase"]
[SourceQuality "1"]
[TimeControl "5400+30"]

{[%evp 25,91,41,35,38,47,46,42,47,40,33,68,64,89,83,79,59,60,52,105,0,29,39,77,82,89,89,196,153,158,102,94,44,60,68,164,130,132,137,123,132,182,127,130,109,127,86,177,179,185,177,170,175,565,533,933,617,5293,5281,4798,2456,29975,29976,5620,1514,29967,29964,29965,29966]} 1. e4 {[%emt 0:00:12]} c5 {[%emt 0:00:04]} 2. Nf3 {[%emt 0:00:04]} d6 {[%emt 0:00:09]} 3. d4 {[%emt 0:00:05]} cxd4 {[%emt 0:00:00]} 4. Nxd4 {[%emt 0:00:05]} Nf6 {[%emt 0:00:04]} 5. Nc3 {[%emt 0:00:02]} Nc6 {[%emt 0:00:07]} 6. Bg5 {[%emt 0:00:07]} e6 {[%emt 0:00:38]} 7. Qd2 {[%emt 0:00:06]} a6 {[%emt 0:00:36]} 8. O-O-O {[%emt 0:00:07]} Bd7 {[%emt 0:00:30][%cal Bc8d7,Bd7c6,Bc6b7][%mdl 32]} 9. Kb1 {[%emt 0:00:09]} Be7 {[%emt 0:05:37]} 10. Nxc6 {[%emt 0:01:13]} Bxc6 {[%emt 0:01:43]} 11. f3 {[%emt 0:00:10]} O-O {[%emt 0:04:45]} 12. h4 {[%emt 0:00:41]} b5 {[%emt 0:04:27]} 13. Ne2 {[%emt 0:00:27]} Rc8 {[%emt 0:03:44]} 14. Nd4 {[%emt 0:00:11] B67: Sicilian: Richter-Rauzer: 7...a6 8 0-0-0 Bd7, lines without 9 f4 Be7.} Bb7 {[%emt 0:02:17]} 15. g4 {[%emt 0:05:22][%cal Bg2g4,Bg4g5][%mdl 32]} Nd7 {[%emt 0:02:25]} 16. Bxe7 {[%emt 0:10:51] White is slightly better.} Qxe7 {[%emt 0:00:07]} 17. Qe3 {[%emt 0:09:19]} Nc5 {[%emt 0:13:03] [#]} 18. g5 $146 {[%emt 0:00:49]} ({Predecessor:} 18. h5 h6 {0-1 (18) Marez,S (2574)-Tasic,V (2491) LSS email 2008}) 18... Rc7 {[%emt 0:03:35]} 19. h5 {[%emt 0:01:22]} g6 {[%emt 0:07:58]} 20. Bh3 {[%emt 0:14:05] hxg6 is the strong threat.} e5 {[%emt 0:06:21]} 21. Ne2 {[%emt 0:02:47]} b4 {[%emt 0:02:16]} ({Black should play} 21... Rd8 $14) 22. Rh2 {[%emt 0:27:03]} ({White should try} 22. Qd2 $16) 22... Rd8 {[%emt 0:01:01]} 23. Nc1 {[%emt 0:02:18]} a5 {[%emt 0:11:28]} 24. Nb3 {[%emt 0:04:53]} a4 {[%emt 0:01:52]} 25. Nxc5 {[%emt 0:00:14]} Rxc5 {[%emt 0:00:09]} (25... dxc5 $16 26. Rxd8+ Qxd8) 26. hxg6 $18 {[%emt 0:03:42]} fxg6 {[%emt 0:01:14] [#]} 27. Rhd2 {[%emt 0:00:46]} (27. Rdh1 $142 $1) 27... Rc6 $16 {[%emt 0:08:42]} 28. a3 {[%emt 0:03:40]} (28. Qd3 $16) 28... bxa3 $1 $14 {[%emt 0:05:00]} 29. Qxa3 {[%emt 0:00:02]} Rb6 {[%emt 0:00:42] Against Qb4} (29... Kh8 $14) 30. Qc5 {[%emt 0:03:49]} (30. Qxa4 $6 Kh8 $14) 30... Rc6 {[%emt 0:02:01]} 31. Qb4 {[%emt 0:00:45]} a3 {[%emt 0:02:13]} 32. Qxa3 {[%emt 0:00:18]} Ra6 {[%emt 0:00:43] [#]} (32... Kg7 $16 {might work better.}) 33. Qb3+ {[%emt 0:00:56]} ({Better is} 33. Qb4 $1 $18) 33... Kg7 $16 {[%emt 0:00:25]} 34. Bf1 {[%emt 0:01:04]} Ra7 {[%emt 0:00:36]} 35. c3 $36 {[%emt 0:02:10][%mdl 2048] Black must now prevent Qb6. Keeping Black busy.} Qxg5 {[%emt 0:05:56]} (35... Rf8 $16 {is a better defense.}) 36. Qb6 $18 {[%emt 0:01:15]} ({Resist} 36. Rxd6 $6 Rxd6 37. Rxd6 Qg1 $16) 36... Qe7 {[%emt 0:04:23]} 37. Rxd6 {[%emt 0:00:05]} Rxd6 {[%emt 0:00:50]} 38. Rxd6 {[%emt 0:00:46]} ({Don't take} 38. Qxd6 $6 Qxd6 39. Rxd6 Bc8 $14) 38... Qf7 $2 {[%emt 0:00:34]} (38... Bc8 {is a better chance.} 39. Kc2 Rb7) 39. Bc4 {[%emt 0:00:57] Active counter play!} Qxc4 {[%emt 0:01:12]} 40. Qxa7 {[%emt 0:00:42][%mdl 4096] Endgame KQR-KQB} Qf1+ {[%emt 0:00:13]} 41. Ka2 {[%emt 0:00:04] Threatening mate with Rb6.} Qc4+ {[%emt 0:00:34]} 42. b3 {[%emt 0:00:32]} Qxc3 {[%emt 0:00:32]} 43. Qxb7+ {[%emt 0:00:05]} Kh6 {[%emt 0:00:06]} 44. Rd7 {[%emt 0:01:18] Qc7 would kill now.} Qc2+ {[%emt 0:00:21]} 45. Ka3 {[%emt 0:00:03]} Qc5+ {[%emt 0:00:15]} 46. Ka4 {[%emt 0:00:15] Weighted Error Value: White=0.31/Black=0.76} 1-0

[Event "Kvika Banki League Iceland 2022-23"]
[Site "Reykjavik"]
[Date "2022.10.15"]
[Round "4.10"]
[White "Jensson, Einar Hjalti"]
[Black "Jones, Gawain C B"]
[Result "1/2-1/2"]
[ECO "D00"]
[WhiteElo "2331"]
[BlackElo "2626"]
[Annotator "TA"]
[PlyCount "68"]
[EventDate "2022.10.13"]
[EventType "team-tourn"]
[EventCountry "ISL"]
[SourceTitle "playchess.com"]
[Source "ChessBase"]
[SourceQuality "1"]
[TimeControl "5400+30"]

{[%evp 10,68,0,0,4,0,14,-5,13,-4,0,-11,-9,-16,-3,-14,-18,-24,-22,-13,0,-4,0,0,0,-15,-5,-41,-30,-29,-30,-27,-11,-16,-2,0,0,0,0,-9,0,0,-2,-9,0,0,0,0,0,0,0,-39,0,0,0,0,0,0,0,0,0]} 1. d4 {[%emt 0:00:03]} Nf6 {[%emt 0:00:26]} 2. Bg5 {[%emt 0:00:21]} g6 {[%emt 0:00:34]} 3. Bxf6 {[%emt 0:00:05]} exf6 {[%emt 0:00:05]} 4. e3 {[%emt 0:00:10]} d5 {[%emt 0:00:05]} 5. c4 {[%emt 0:00:19]} dxc4 {[%emt 0:00:45]} 6. Bxc4 {[%emt 0:00:26]} Bd6 {[%emt 0:00:41] D00: 1 d4 d5: Unusual lines.} 7. Nc3 {[%emt 0:00:35]} O-O {[%emt 0:03:25]} 8. Nf3 {[%emt 0:00:54]} Nd7 {[%emt 0:01:26]} 9. a3 {[%emt 0:06:09]} f5 {[%emt 0:03:48]} 10. O-O {[%emt 0:01:57]} c6 {[%emt 0:03:32]} 11. b4 {[%emt 0:03:16]} Qe7 {[%emt 0:05:35]} 12. Qb3 {[%emt 0:24:45]} Nb6 {[%emt 0:01:59] [#]} 13. d5 $146 {[%emt 0:14:26]} ({Predecessor:} 13. Bd3 Be6 14. Qc2 a5 15. bxa5 Rxa5 16. Rfb1 Nd5 17. a4 Rfa8 18. Qb2 Nxc3 19. Qxc3 Rxa4 20. Rxa4 Rxa4 {0-1 (41) Anton Guijarro,D (2631)-Cheparinov,I (2682) Dubai 2014}) 13... a5 {[%emt 0:15:01][%cal Ra5b4]} 14. Rab1 {[%emt 0:05:39]} axb4 {[%emt 0:07:51]} 15. axb4 {[%emt 0:00:15]} Bd7 {[%emt 0:00:15]} 16. Rfd1 {[%emt 0:03:23]} Rfd8 {[%emt 0:08:46]} 17. dxc6 {[%emt 0:06:37]} Bxc6 {[%emt 0:00:28]} 18. Nd4 {[%emt 0:07:53]} Nxc4 {[%emt 0:03:35]} 19. Qxc4 {[%emt 0:04:19]} ({Not} 19. Nxc6 $2 Bxh2+ 20. Kxh2 Qh4+ 21. Kg1 bxc6 22. Rxd8+ Rxd8 $19) 19... Rac8 {[%emt 0:01:05]} 20. Qb3 $1 {[%emt 0:00:28]} Qe5 {[%emt 0:15:41]} 21. g3 {[%emt 0:00:11]} Be4 {[%emt 0:00:29] This bishop pair is nice.} 22. Rbc1 {[%emt 0:01:37]} h5 {[%emt 0:02:14]} 23. Nxe4 {[%emt 0:02:00]} Rxc1 {[%emt 0:03:58]} 24. Rxc1 {[%emt 0:01:22]} Qxe4 {[%emt 0:00:06]} 25. Rc4 {[%emt 0:03:35][%cal Od4c6]} Ra8 {[%emt 0:02:58][%cal Bd8a8,Ba8a1,Ba1b1][%mdl 32]} 26. Qc3 {[%emt 0:02:33] Against Ra1+} Qb1+ {[%emt 0:02:26]} 27. Kg2 $1 {[%emt 0:04:00]} Bf8 {[%emt 0:03:34] [#] Threatens to win with ...Ra1.} 28. Qc2 {[%emt 0:02:07]} Ra1 {[%emt 0:00:28] ( -> ...Qh1+)} 29. Qxb1 {[%emt 0:00:38]} Rxb1 $11 {[%emt 0:00:02] KRB-KRN} 30. b5 {[%emt 0:01:48]} b6 {[%emt 0:00:08]} 31. Rc8 {[%emt 0:00:17] The position is equal.} Kg7 {[%emt 0:00:51]} 32. Rc7 {[%emt 0:00:01]} Kg8 {[%emt 0:00:50]} 33. Rc8 {[%emt 0:00:01]} Kg7 {[%emt 0:00:55]} 34. Rc7 {[%emt 0:00:02]} Kg8 {[%emt 0:01:40] Weighted Error Value: White=0.06 (flawless) /Black=0.06 (flawless)} 1/2-1/2

[Event "Kvika Banki League Iceland 2022-23"]
[Site "Reykjavik"]
[Date "2022.10.15"]
[Round "4.11"]
[White "Gretarsson, Hjorvar Steinn"]
[Black "Gislason, Gudmundur"]
[Result "1-0"]
[ECO "E90"]
[WhiteElo "2533"]
[BlackElo "2293"]
[Annotator "TA"]
[PlyCount "51"]
[EventDate "2022.10.13"]
[EventType "team-tourn"]
[EventCountry "ISL"]
[SourceTitle "playchess.com"]
[Source "ChessBase"]
[SourceQuality "1"]
[TimeControl "5400+30"]

{[%evp 12,51,33,32,34,50,87,64,97,99,109,88,89,86,170,189,335,323,533,552,554,549,547,556,549,546,549,548,554,547,554,555,671,671,704,715,830,800,935,898,1275,1219]} 1. c4 {[%emt 0:00:05]} Nf6 {[%emt 0:00:06]} 2. Nc3 {[%emt 0:00:05]} g6 {[%emt 0:00:05]} 3. e4 {[%emt 0:00:06]} d6 {[%emt 0:00:03]} 4. d4 {[%emt 0:00:07][%cal Bd2d4,Bd4d5][%mdl 32]} Bg7 {[%emt 0:00:06]} 5. h3 {[%emt 0:00:47]} O-O {[%emt 0:00:08]} 6. Be3 {[%emt 0:00:05]} c5 {[%emt 0:01:46]} 7. Nf3 {[%emt 0:00:26]} Qa5 {[%emt 0:00:39] [#] White must now prevent ...Nxe4. E90: King's Indian: Classical: Early deviations and 6 h3.} 8. Bd3 $1 {[%emt 0:01:07] The main line 8.Bd3 scores better than 8.Qd2.} Nc6 {[%emt 0:01:36]} 9. d5 {[%emt 0:08:43]} Ne5 {[%emt 0:00:30] White is slightly better.} 10. Nxe5 {[%emt 0:03:54]} dxe5 {[%emt 0:00:03] [#]} 11. g4 $146 {[%emt 0:06:07]} ({Predecessor:} 11. O-O a6 12. Qa4 Qxa4 13. Nxa4 Nd7 14. Nxc5 Rb8 15. b4 Rd8 {0-1 (15) Sondermann,D-Herbert,M DESC email 2004}) 11... a6 {[%emt 0:00:34]} 12. a3 {[%emt 0:02:15]} b5 {[%emt 0:14:16]} (12... e6 $16 {was worth a try.}) 13. cxb5 $18 {[%emt 0:00:47][%cal Bc4b5,Bb5b6][%mdl 32]} c4 {[%emt 0:00:50] [#]} (13... axb5 {keeps fighting.} 14. Bxc5 Qc7) 14. b6 $1 {[%emt 0:00:39]} ({Stronger than} 14. Bxc4 Nxe4 15. Qc1 axb5 $14) 14... cxd3 $2 {[%emt 0:10:18]} (14... Bh6 {is a better defense.}) 15. b4 {[%emt 0:02:22] White is clearly winning.} Nxe4 {[%emt 0:00:17]} 16. bxa5 {[%emt 0:01:44]} Nxc3 {[%emt 0:00:09]} 17. Qxd3 {[%emt 0:02:59]} e4 {[%emt 0:01:09]} 18. Qd2 {[%emt 0:01:18]} Bb7 {[%emt 0:01:42]} 19. Bd4 {[%emt 0:02:29]} Nxd5 {[%emt 0:02:20]} 20. Bxg7 {[%emt 0:01:28]} Kxg7 {[%emt 0:00:03]} 21. Rc1 {[%emt 0:06:40][%cal Ba1c1,Bc1c5,Bc5c7][%mdl 32]} e5 {[%emt 0:02:57]} 22. O-O {[%emt 0:05:07]} h5 {[%emt 0:04:40]} 23. g5 {[%emt 0:02:46]} Rfe8 {[%emt 0:04:52]} 24. Rfd1 {[%emt 0:02:18]} Re7 {[%emt 0:03:48]} 25. Rc5 {[%emt 0:01:37]} Nf4 {[%emt 0:00:44]} 26. Rc7 {[%emt 0:01:12] White took control after the opening.  Weighted Error Value: White=0.01 (flawless) /Black=0.55} 1-0

[Event "Kvika Banki League Iceland 2022-23"]
[Site "Reykjavik"]
[Date "2022.10.15"]
[Round "4.12"]
[White "Briem, Benedikt"]
[Black "Stefansson, Hannes"]
[Result "0-1"]
[ECO "E52"]
[WhiteElo "2208"]
[BlackElo "2527"]
[Annotator "TA"]
[PlyCount "62"]
[EventDate "2022.10.13"]
[EventType "team-tourn"]
[EventCountry "ISL"]
[SourceTitle "playchess.com"]
[Source "ChessBase"]
[SourceQuality "1"]
[TimeControl "5400+30"]

{[%evp 15,62,0,0,0,0,0,0,-11,27,21,17,-27,8,6,60,-22,-16,-100,86,-116,-123,-226,-213,-291,-289,-374,-323,-403,-363,-489,-498,-646,-646,-646,-641,-621,-491,-510,-427,-767,-780,-1178,-1176,-1112,-888,-1458,-1422,-2655,-2445]} 1. d4 {[%emt 0:00:02]} Nf6 {[%emt 0:00:09]} 2. c4 {[%emt 0:01:09]} e6 {[%emt 0:00:11]} 3. Nc3 {[%emt 0:00:37]} Bb4 {[%emt 0:00:22]} 4. Bd2 {[%emt 0:01:32]} O-O {[%emt 0:00:49]} 5. Nf3 {[%emt 0:00:14]} b6 {[%emt 0:02:39]} 6. e3 {[%emt 0:02:23]} Bb7 {[%emt 0:01:05]} 7. Bd3 {[%emt 0:01:23]} d5 {[%emt 0:01:59]} 8. cxd5 {[%emt 0:01:23]} exd5 {[%emt 0:00:05]} 9. Ne5 {[%emt 0:00:24] E52: Nimzo-Indian: Rubinstein: 4...0-0 5 Nf3 d5 6 Bd3 b6.} Bd6 {[%emt 0:04:43]} 10. O-O {[%emt 0:01:16]} c5 {[%emt 0:00:54]} 11. Rc1 {[%emt 0:00:26] The position is equal.} a6 {[%emt 0:08:07]} 12. f4 {[%emt 0:04:42]} Nc6 {[%emt 0:00:46]} 13. Qf3 {[%emt 0:06:44]} Re8 {[%emt 0:09:29]} (13... cxd4 $5 {[%cal Rd6e5]} 14. Nxc6 Bxc6 15. exd4 b5 $11) 14. Ne2 {[%emt 0:08:24]} Ne4 {[%emt 0:01:26] [#]} ({Better is} 14... Rc8 $11) 15. Be1 $146 {[%emt 0:11:52]} ({Much weaker is} 15. Bxe4 $6 dxe4 16. Qf2 Bf8 $11) (15. Ng3 $1 $14) ({Predecessor:} 15. Bxe4 dxe4 16. Qh5 g6 17. Qh6 Bf8 18. Qh3 Bg7 19. Bc3 Rc8 20. Rfd1 Qe7 21. Nxc6 Bxc6 {1-0 (61) Ardila,O (2017)-Barski,R (2444) Chess.com INT 2020}) 15... f6 $11 {[%emt 0:00:40]} 16. Bh4 {[%emt 0:05:32]} ({Not} 16. Bxe4 $2 dxe4 17. Qh5 fxe5 $19) (16. Nxc6 $11 Bxc6 17. dxc5 bxc5 18. Bxe4 dxe4 19. Qg4) 16... Ne7 $2 {[%emt 0:01:55]} ({Resist} 16... Bxe5 17. fxe5 Rxe5 18. dxe5 $16) (16... Nb4 $1 $17 {[%cal Rd6e5] keeps the pressure on.} 17. Bxe4 dxe4) 17. Bxe4 $2 {[%emt 0:22:12]} (17. Ng3 $1 $16 {and life is bright.}) 17... dxe4 $17 {[%emt 0:00:23]} 18. Qh5 {[%emt 0:00:17] [#]} (18. Qf2 $17) 18... g6 $1 $19 {[%emt 0:03:39]} 19. Qg4 {[%emt 0:05:01] [#]} Bc8 {[%emt 0:00:23][%cal Bb7c8,Bc8f5,Bf5g4][%mdl 32] Against Qe6+} 20. f5 {[%emt 0:00:45]} fxe5 {[%emt 0:02:39]} 21. Qg5 {[%emt 0:05:06]} Bxf5 {[%emt 0:01:41]} 22. dxe5 {[%emt 0:01:58]} Bxe5 {[%emt 0:01:44] Black is clearly winning.} 23. g4 {[%emt 0:06:09]} h6 {[%emt 0:01:46]} 24. Qxh6 {[%emt 0:00:32]} Bxg4 {[%emt 0:00:38]} 25. Rf6 {[%emt 0:03:37] Rxg6+ is the strong threat.} Qc7 {[%emt 0:04:23]} 26. Nf4 {[%emt 0:03:04]} Bf5 {[%emt 0:02:40]} 27. Nh5 {[%emt 0:05:27]} (27. Ne6 $142 Bxe6 28. Rxe6) 27... gxh5 {[%emt 0:01:57]} 28. Kh1 {[%emt 0:00:39]} Bxf6 {[%emt 0:01:12]} 29. Bxf6 {[%emt 0:00:57]} Ng6 {[%emt 0:02:35]} 30. Rg1 {[%emt 0:01:02]} Qh7 {[%emt 0:00:20]} 31. Qf4 {[%emt 0:00:34]} Bg4 {[%emt 0:00:24] Weighted Error Value: White=1.41/Black=0.43} 0-1

[Event "Kvika Banki League Iceland 2022-23"]
[Site "Reykjavik"]
[Date "2022.10.15"]
[Round "4.13"]
[White "Movsziszian, Karen"]
[Black "Briem, Stephan"]
[Result "1-0"]
[ECO "A09"]
[WhiteElo "2474"]
[BlackElo "2083"]
[Annotator "TA"]
[PlyCount "69"]
[EventDate "2022.10.13"]
[EventType "team-tourn"]
[EventCountry "ISL"]
[SourceTitle "playchess.com"]
[Source "ChessBase"]
[SourceQuality "1"]
[TimeControl "5400+30"]

{[%evp 9,69,-11,0,-12,-12,-9,18,11,78,31,38,41,34,35,91,64,87,84,79,67,66,65,55,62,62,58,66,73,101,92,107,97,83,84,93,58,119,48,81,86,81,71,82,58,60,53,54,47,66,53,86,43,72,47,93,91,125,162,748,737,910,871]} 1. g3 {[%emt 0:00:03]} d5 {[%emt 0:00:15]} 2. Nf3 {[%emt 0:00:05]} g6 {[%emt 0:00:18]} 3. c4 {[%emt 0:01:21]} dxc4 {[%emt 0:00:48]} 4. Na3 {[%emt 0:00:18]} Bg7 {[%emt 0:03:17]} 5. Nxc4 {[%emt 0:00:05]} Nc6 {[%emt 0:00:42]} 6. d3 {[%emt 0:00:26] A09: Réti Opening: 1 Nf3 d5 2 c4.} e5 {[%emt 0:03:05][%cal Oe5e4]} 7. Bd2 {[%emt 0:00:07] [#]} Qe7 $146 {[%emt 0:06:51]} ({Predecessor:} 7... Be6 8. Rc1 Nge7 9. Bg2 a5 10. a3 a4 11. O-O O-O 12. Bc3 f6 13. e4 Qd7 {1-0 (48) Praggnanandhaa,R (2619)-Nakamura,H (2750) Chess.com INT 2022}) 8. Bg2 {[%emt 0:02:11] The position is equal.} Nh6 {[%emt 0:01:17] [#]} (8... Nf6 $11) 9. O-O {[%emt 0:10:14]} (9. Ncxe5 $1 $16 Nxe5 10. Nxe5) 9... O-O $14 {[%emt 0:03:00]} 10. b4 {[%emt 0:02:00][%cal Bb2b4,Bb4b5][%mdl 32]} Nf5 {[%emt 0:11:04]} 11. Rb1 {[%emt 0:04:47]} Qe6 {[%emt 0:07:42]} (11... a6 $14) 12. e3 {[%emt 0:02:02]} h6 {[%emt 0:01:43]} 13. b5 {[%emt 0:02:46]} Nce7 {[%emt 0:01:34]} 14. Qc2 {[%emt 0:00:05]} Nd6 {[%emt 0:02:06]} 15. Rfc1 {[%emt 0:05:49]} a6 {[%emt 0:07:19]} 16. a4 {[%emt 0:05:58][%cal Ba2a4,Ba4b5][%mdl 32]} axb5 {[%emt 0:02:04]} 17. axb5 {[%emt 0:00:02]} Bd7 {[%emt 0:00:45]} 18. Bc3 {[%emt 0:06:14][%cal Rc3e5]} f6 {[%emt 0:11:21]} 19. Nxd6 {[%emt 0:03:32]} cxd6 {[%emt 0:00:18]} 20. Nd2 {[%emt 0:00:03]} Ra2 {[%emt 0:05:04]} 21. Rb2 {[%emt 0:00:25]} Rxb2 {[%emt 0:00:14]} 22. Qxb2 {[%emt 0:00:11]} Nd5 {[%emt 0:02:18]} (22... b6 $14) 23. Nc4 {[%emt 0:00:18]} ({White should try} 23. Bb4 $16) 23... Nxc3 {[%emt 0:01:36]} 24. Rxc3 {[%emt 0:00:05] aiming for Nb6.} d5 {[%emt 0:04:21]} 25. Na5 {[%emt 0:00:27][%cal Bc4a5,Ba5b7,Bb7c5,Bc5d7,Bd7f8][%mdl 32]} d4 {[%emt 0:06:52]} 26. exd4 {[%emt 0:06:12]} exd4 {[%emt 0:00:12]} 27. Rc1 {[%emt 0:00:01] Inhibits Qe1+. b6 is the strong threat.} Qb6 $1 {[%emt 0:03:36]} 28. Nxb7 {[%emt 0:00:58]} Qxb5 {[%emt 0:04:49]} 29. Qxd4 {[%emt 0:00:05]} f5 {[%emt 0:01:09]} 30. Qd6 {[%emt 0:03:20]} Rf6 {[%emt 0:02:27]} 31. Qc7 {[%emt 0:03:14] White is more active.} Be6 {[%emt 0:06:57]} (31... Kh7 $14) 32. Nc5 $16 {[%emt 0:01:31]} Bf7 {[%emt 0:00:22]} 33. d4 {[%emt 0:00:56] Hoping for d5.} Kh7 $2 {[%emt 0:00:49]} (33... Qb2 34. Rd1 Rb6) 34. Nd7 $18 {[%emt 0:02:49]} Re6 {[%emt 0:00:39] [#]} 35. Nf8+ $1 {[%emt 0:00:17][%mdl 512] Weighted Error Value: White=0.10 (very precise) /Black=0.20 (precise)} 1-0

[Event "Kvika Banki League Iceland 2022-23"]
[Site "Reykjavik"]
[Date "2022.10.15"]
[Round "4.14"]
[White "Ornolfsson, Magnus P."]
[Black "Arngrimsson, Dagur"]
[Result "1/2-1/2"]
[ECO "C45"]
[WhiteElo "2154"]
[BlackElo "2377"]
[Annotator "TA"]
[PlyCount "62"]
[EventDate "2022.10.13"]
[EventType "team-tourn"]
[EventCountry "ISL"]
[SourceTitle "playchess.com"]
[Source "ChessBase"]
[SourceQuality "1"]
[TimeControl "5400+30"]

{[%evp 15,62,0,-6,-15,0,0,0,0,0,3,27,13,56,0,13,0,0,0,0,0,0,0,0,0,0,-11,0,0,0,0,7,8,8,6,7,0,0,0,0,0,0,0,0,0,0,0,0,0,0]} 1. e4 {[%emt 0:00:03]} e5 {[%emt 0:08:45]} 2. Nf3 {[%emt 0:00:26]} Nc6 {[%emt 0:00:05]} 3. d4 {[%emt 0:00:28]} exd4 {[%emt 0:00:07]} 4. Nxd4 {[%emt 0:00:07]} Nf6 {[%emt 0:03:53]} 5. Nxc6 {[%emt 0:00:44]} bxc6 {[%emt 0:00:08]} 6. Bd3 {[%emt 0:00:11]} d5 {[%emt 0:00:55]} 7. exd5 {[%emt 0:00:11]} cxd5 {[%emt 0:00:13]} 8. O-O {[%emt 0:00:10]} Be7 {[%emt 0:02:44]} 9. Bg5 {[%emt 0:02:27] C45: Scotch Game.} Rb8 {[%emt 0:01:34] Inhibits Bb5+.} 10. b3 {[%emt 0:04:30] [#]} h6 $146 {[%emt 0:11:16]} ({Predecessor:} 10... O-O 11. Re1 Be6 12. Nd2 h6 13. Bh4 Bb4 14. Re3 g5 15. Bg3 Bg4 16. Be2 Bxe2 17. Qxe2 Bxd2 18. Qxd2 {0-1 (33) Stanko,I-Betko,L (2225) Slovakia 1997}) 11. Bh4 {[%emt 0:06:56]} Be6 {[%emt 0:06:46]} 12. Nd2 {[%emt 0:06:06]} a5 {[%emt 0:04:14]} 13. c4 {[%emt 0:07:52]} a4 {[%emt 0:05:07]} 14. Re1 {[%emt 0:07:45]} (14. bxa4 $14 O-O 15. Qc2) 14... O-O {[%emt 0:05:45] The position is equal.} 15. cxd5 {[%emt 0:08:11]} Bxd5 {[%emt 0:10:08]} 16. Nc4 {[%emt 0:04:39]} axb3 {[%emt 0:12:46]} 17. axb3 {[%emt 0:01:14]} Be6 {[%emt 0:05:57]} 18. Qc2 {[%emt 0:10:24]} Nd5 {[%emt 0:05:46][%cal Bf6d5,Bd5f4,Bf4e6,Be6d4,Bd4f3][%mdl 32]} 19. Bxe7 {[%emt 0:05:04]} Qxe7 {[%emt 0:00:15]} 20. Bh7+ {[%emt 0:05:04]} Kh8 {[%emt 0:00:05]} 21. Bf5 {[%emt 0:00:24] [#] Threatens to win with Bxe6.} Nf4 {[%emt 0:03:07][%cal Of4g2] White must now prevent ...Nxg2!} 22. g3 {[%emt 0:04:56]} Qf6 {[%emt 0:03:49]} 23. Bxe6 {[%emt 0:05:41]} Nxe6 {[%emt 0:00:06]} 24. Ne5 {[%emt 0:00:52] Hoping for Nd7.} Rbd8 {[%emt 0:07:31] Prevents Nd7.} 25. Ra6 {[%emt 0:06:31][%cal Oe5f7]} Nd4 {[%emt 0:01:08][%csl LRa6,LRc2]} 26. Qc4 {[%emt 0:01:04]} Nf3+ {[%emt 0:00:30]} 27. Nxf3 {[%emt 0:00:46]} Qxf3 {[%emt 0:00:05]} 28. Qxc7 {[%emt 0:03:50]} Rd1 {[%emt 0:00:53][%cal Rd1e1] [#]} ({Don't do} 28... Rd2 29. Qb6 $14) 29. Ra1 {[%emt 0:03:34]} Rxe1+ {[%emt 0:00:07]} 30. Rxe1 {[%emt 0:00:05]} Qxb3 {[%emt 0:00:05]} 31. Qe7 {[%emt 0:00:33]} Kg8 {[%emt 0:00:09] Weighted Error Value: White=0.04 (flawless) /Black=0.05 (flawless)} 1/2-1/2